[Event "Titled Tuesday Blitz November 22 Early 2022"]
[White "Jones, Daniel"]
[Black "Han, Yichen"]
[WhiteFideId "2019655"]
[BlackFideId "1054430"]
[WhiteElo "2365"]
[BlackElo "2323"]
[Result "0-1"]
[Round "06"]
[TimeControl "180+1"]
[Date "2022.11.23"]
[WhiteClock "0:00:13"]
[BlackClock "0:01:35"]

1. f4 {[%clk 0:02:59]}  e5 {[%clk 0:02:57]} 2. fxe5 {[%clk 0:02:59]}  d6 {[%clk 0:02:57]} 3. Nf3 {[%clk 0:02:58]}  dxe5 {[%clk 0:02:56]} 4. e4 {[%clk 0:02:58]}  Nc6 {[%clk 0:02:56]} 5. Bc4 {[%clk 0:02:58]}  Bc5 {[%clk 0:02:48]} 6. c3 {[%clk 0:02:58]}  Nf6 {[%clk 0:02:46]} 7. b4 {[%clk 0:02:57]}  Bd6 {[%clk 0:02:43]} 8. d3 {[%clk 0:02:55]}  O-O {[%clk 0:02:42]} 9. O-O {[%clk 0:02:53]}  Ne7 {[%clk 0:02:40]} 10. Qb3 {[%clk 0:02:46]}  Ng6 {[%clk 0:02:38]} 11. Ng5 {[%clk 0:02:37]}  Qe7 {[%clk 0:02:30]} 12. Be3 {[%clk 0:02:23]}  a5 {[%clk 0:02:28]} 13. bxa5 {[%clk 0:02:16]}  h6 {[%clk 0:02:26]} 14. Nf3 {[%clk 0:02:07]}  Ng4 {[%clk 0:02:25]} 15. Bc1 {[%clk 0:01:39]}  Rxa5 {[%clk 0:02:21]} 16. h3 {[%clk 0:01:33]}  Nf6 {[%clk 0:02:21]} 17. a4 {[%clk 0:01:18]}  Nh5 {[%clk 0:02:17]} 18. Na3 {[%clk 0:01:12]}  Ngf4 {[%clk 0:02:12]} 19. Nb5 {[%clk 0:01:04]}  Ng3 {[%clk 0:02:05]} 20. Rf2 {[%clk 0:00:59]}  Bc5 {[%clk 0:01:58]} 21. d4 {[%clk 0:00:59]}  Nxe4 {[%clk 0:01:54]} 22. Bxf4 {[%clk 0:00:54]}  Nxf2 {[%clk 0:01:53]} 23. Bxe5 {[%clk 0:00:48]}  c6 {[%clk 0:01:39]} 24. dxc5 {[%clk 0:00:31]}  cxb5 {[%clk 0:01:39]} 25. Bxb5 {[%clk 0:00:21]}  Ne4 {[%clk 0:01:39]} 26. Re1 {[%clk 0:00:18]}  Ng5 {[%clk 0:01:36]} 27. Bd6 {[%clk 0:00:13]}  Nxf3+ {[%clk 0:01:36]} 28. gxf3 {[%clk 0:00:13]}  Qxe1+ {[%clk 0:01:36]} 29. Kg2 {[%clk 0:00:13]}  Qd2+ {[%clk 0:01:35]} 0-1


[Site "https://www.chess.com"]

[Event "Titled Tuesday Blitz November 22 Early 2022"]
[White "Kamsky, Gata"]
[Black "Firouzja, Alireza"]
[WhiteFideId "2000024"]
[BlackFideId "12573981"]
[WhiteElo "2666"]
[BlackElo "2903"]
[Result "1/2-1/2"]
[Round "06"]
[TimeControl "180+1"]
[Date "2022.11.22"]
[WhiteClock "0:00:23"]
[BlackClock "0:00:08"]

1. e4 {[%clk 0:03:00]}  c5 {[%clk 0:02:55]} 2. Nf3 {[%clk 0:02:59]}  e6 {[%clk 0:02:55]} 3. d4 {[%clk 0:02:58]}  cxd4 {[%clk 0:02:55]} 4. Nxd4 {[%clk 0:02:58]}  Nc6 {[%clk 0:02:55]} 5. Nc3 {[%clk 0:02:58]}  Nf6 {[%clk 0:02:54]} 6. Ndb5 {[%clk 0:02:57]}  d6 {[%clk 0:02:54]} 7. Bf4 {[%clk 0:02:57]}  e5 {[%clk 0:02:55]} 8. Bg5 {[%clk 0:02:57]}  a6 {[%clk 0:02:55]} 9. Na3 {[%clk 0:02:58]}  b5 {[%clk 0:02:55]} 10. Nd5 {[%clk 0:02:58]}  Be7 {[%clk 0:02:55]} 11. Bxf6 {[%clk 0:02:58]}  Bxf6 {[%clk 0:02:56]} 12. c4 {[%clk 0:02:58]}  b4 {[%clk 0:02:54]} 13. Nc2 {[%clk 0:02:59]}  a5 {[%clk 0:02:51]} 14. Be2 {[%clk 0:02:58]}  O-O {[%clk 0:02:51]} 15. O-O {[%clk 0:02:59]}  g6 {[%clk 0:02:51]} 16. Bg4 {[%clk 0:02:56]}  Bb7 {[%clk 0:02:51]} 17. Qd3 {[%clk 0:02:54]}  Bg7 {[%clk 0:02:51]} 18. Rad1 {[%clk 0:02:51]}  Nd4 {[%clk 0:02:51]} 19. Nxd4 {[%clk 0:02:50]}  exd4 {[%clk 0:02:51]} 20. b3 {[%clk 0:02:30]}  Ra7 {[%clk 0:02:47]} 21. g3 {[%clk 0:02:26]}  Re8 {[%clk 0:02:46]} 22. Bf3 {[%clk 0:02:24]}  Bxd5 {[%clk 0:02:44]} 23. exd5 {[%clk 0:02:23]}  Rae7 {[%clk 0:02:45]} 24. Rd2 {[%clk 0:02:20]}  h5 {[%clk 0:02:25]} 25. h4 {[%clk 0:02:11]}  Qd7 {[%clk 0:02:25]} 26. Kg2 {[%clk 0:02:09]}  Re1 {[%clk 0:02:14]} 27. Rxe1 {[%clk 0:02:06]}  Rxe1 {[%clk 0:02:14]} 28. Rd1 {[%clk 0:02:06]}  Re8 {[%clk 0:02:14]} 29. Rd2 {[%clk 0:02:06]}  Bf6 {[%clk 0:02:09]} 30. Re2 {[%clk 0:02:06]}  Rc8 {[%clk 0:02:08]} 31. Qe4 {[%clk 0:02:03]}  Kg7 {[%clk 0:02:04]} 32. Re1 {[%clk 0:01:59]}  a4 {[%clk 0:02:04]} 33. Qd3 {[%clk 0:01:55]}  axb3 {[%clk 0:02:03]} 34. axb3 {[%clk 0:01:52]}  Ra8 {[%clk 0:02:02]} 35. Qc2 {[%clk 0:01:47]}  Ra3 {[%clk 0:02:01]} 36. Be4 {[%clk 0:01:41]}  Qa7 {[%clk 0:01:57]} 37. Re2 {[%clk 0:01:36]}  Ra1 {[%clk 0:01:57]} 38. Bd3 {[%clk 0:01:34]}  Qd7 {[%clk 0:01:53]} 39. c5 {[%clk 0:01:29]}  dxc5 {[%clk 0:01:45]} 40. Qxc5 {[%clk 0:01:29]}  Rd1 {[%clk 0:01:44]} 41. Bc2 {[%clk 0:01:28]}  Rc1 {[%clk 0:01:42]} 42. Qc4 {[%clk 0:01:24]}  Bxh4 {[%clk 0:01:15]} 43. Qxd4+ {[%clk 0:01:23]}  Bf6 {[%clk 0:01:15]} 44. Qxb4 {[%clk 0:01:21]}  h4 {[%clk 0:01:07]} 45. gxh4 {[%clk 0:01:18]}  Qxd5+ {[%clk 0:00:57]} 46. Qe4 {[%clk 0:01:17]}  Qc5 {[%clk 0:00:52]} 47. Bd3 {[%clk 0:01:14]}  Qh5 {[%clk 0:00:48]} 48. Bc4 {[%clk 0:01:12]}  g5 {[%clk 0:00:38]} 49. Re1 {[%clk 0:01:07]}  Rxe1 {[%clk 0:00:35]} 50. Qxe1 {[%clk 0:01:07]}  Qg4+ {[%clk 0:00:35]} 51. Kh1 {[%clk 0:01:04]}  Qf3+ {[%clk 0:00:29]} 52. Kg1 {[%clk 0:01:04]}  Qg4+ {[%clk 0:00:30]} 53. Kh1 {[%clk 0:01:03]}  Qf3+ {[%clk 0:00:25]} 54. Kg1 {[%clk 0:01:03]}  gxh4 {[%clk 0:00:26]} 55. Qe3 {[%clk 0:01:01]}  Qg4+ {[%clk 0:00:25]} 56. Kh1 {[%clk 0:00:58]}  Bd4 {[%clk 0:00:24]} 57. Qe2 {[%clk 0:00:52]}  Qh3+ {[%clk 0:00:15]} 58. Kg1 {[%clk 0:00:52]}  Qg3+ {[%clk 0:00:16]} 59. Kf1 {[%clk 0:00:51]}  Qf4 {[%clk 0:00:15]} 60. Kg2 {[%clk 0:00:51]}  Kf8 {[%clk 0:00:10]} 61. Bd3 {[%clk 0:00:36]}  h3+ {[%clk 0:00:07]} 62. Kxh3 {[%clk 0:00:35]}  Bxf2 {[%clk 0:00:08]} 63. Qg4 {[%clk 0:00:33]}  Qe3+ {[%clk 0:00:07]} 64. Kg2 {[%clk 0:00:33]}  Qxd3 {[%clk 0:00:05]} 65. Qc8+ {[%clk 0:00:33]}  Kg7 {[%clk 0:00:03]} 66. Qg4+ {[%clk 0:00:33]}  Kf8 {[%clk 0:00:02]} 67. Qc8+ {[%clk 0:00:33]}  Kg7 {[%clk 0:00:02]} 68. Qg4+ {[%clk 0:00:33]}  Kh6 {[%clk 0:00:03]} 69. Qf4+ {[%clk 0:00:31]}  Kg6 {[%clk 0:00:03]} 70. Qg4+ {[%clk 0:00:31]}  Kf6 {[%clk 0:00:04]} 71. Qf4+ {[%clk 0:00:31]}  Ke6 {[%clk 0:00:04]} 72. Qg4+ {[%clk 0:00:29]}  Ke7 {[%clk 0:00:05]} 73. Qg5+ {[%clk 0:00:29]}  Ke6 {[%clk 0:00:05]} 74. Qg4+ {[%clk 0:00:29]}  f5 {[%clk 0:00:05]} 75. Qg8+ {[%clk 0:00:27]}  Ke5 {[%clk 0:00:05]} 76. Kxf2 {[%clk 0:00:26]}  Qd4+ {[%clk 0:00:06]} 77. Kf3 {[%clk 0:00:26]}  Qe4+ {[%clk 0:00:06]} 78. Kf2 {[%clk 0:00:26]}  Qc2+ {[%clk 0:00:07]} 79. Kf3 {[%clk 0:00:26]}  Qd1+ {[%clk 0:00:07]} 80. Kf2 {[%clk 0:00:25]}  Qd2+ {[%clk 0:00:08]} 81. Kf3 {[%clk 0:00:25]}  Qf4+ {[%clk 0:00:09]} 82. Ke2 {[%clk 0:00:24]}  Qe4+ {[%clk 0:00:09]} 83. Kf2 {[%clk 0:00:24]}  Qd4+ {[%clk 0:00:08]} 84. Kf3 {[%clk 0:00:23]}  Qd3+ {[%clk 0:00:08]} 85. Kf2 {[%clk 0:00:23]}  Qd4+ {[%clk 0:00:08]} 1/2-1/2


[Site "https://www.chess.com"]

[Event "Titled Tuesday Blitz November 22 Early 2022"]
[White "Kilic, Eray"]
[Black "Aldokhin, Ivan"]
[WhiteFideId "44517173"]
[BlackFideId "24115720"]
[WhiteElo "2328"]
[BlackElo "2313"]
[Result "1-0"]
[Round "06"]
[TimeControl "180+1"]
[Date "2022.11.23"]
[WhiteClock "0:00:15"]
[BlackClock "0:00:06"]

1. e4 {[%clk 0:03:00]}  c5 {[%clk 0:02:56]} 2. Nf3 {[%clk 0:03:00]}  e6 {[%clk 0:02:56]} 3. d4 {[%clk 0:03:00]}  cxd4 {[%clk 0:02:57]} 4. Nxd4 {[%clk 0:03:01]}  a6 {[%clk 0:02:57]} 5. Nc3 {[%clk 0:02:50]}  Qc7 {[%clk 0:02:57]} 6. g3 {[%clk 0:02:49]}  Nf6 {[%clk 0:02:57]} 7. Bg2 {[%clk 0:02:49]}  d6 {[%clk 0:02:57]} 8. O-O {[%clk 0:02:49]}  Be7 {[%clk 0:02:58]} 9. Re1 {[%clk 0:02:48]}  O-O {[%clk 0:02:58]} 10. Be3 {[%clk 0:02:45]}  Nc6 {[%clk 0:02:57]} 11. Nxc6 {[%clk 0:02:45]}  bxc6 {[%clk 0:02:57]} 12. h3 {[%clk 0:02:45]}  d5 {[%clk 0:02:51]} 13. exd5 {[%clk 0:02:43]}  cxd5 {[%clk 0:02:50]} 14. Qd2 {[%clk 0:02:43]}  Bb7 {[%clk 0:02:44]} 15. Bd4 {[%clk 0:02:37]}  Rac8 {[%clk 0:02:36]} 16. Rad1 {[%clk 0:02:33]}  Nd7 {[%clk 0:02:20]} 17. Bxd5 {[%clk 0:02:20]}  Bb4 {[%clk 0:01:37]} 18. Qg5 {[%clk 0:01:45]}  g6 {[%clk 0:01:07]} 19. Rxe6 {[%clk 0:00:53]}  fxe6 {[%clk 0:01:07]} 20. Bxe6+ {[%clk 0:00:53]}  Rf7 {[%clk 0:01:07]} 21. Qh6 {[%clk 0:00:46]}  Nf6 {[%clk 0:00:17]} 22. Bxf6 {[%clk 0:00:41]}  Bf8 {[%clk 0:00:17]} 23. Qf4 {[%clk 0:00:17]}  Qxf4 {[%clk 0:00:17]} 24. gxf4 {[%clk 0:00:18]}  Rc6 {[%clk 0:00:18]} 25. Bxf7+ {[%clk 0:00:18]}  Kxf7 {[%clk 0:00:18]} 26. Rd7+ {[%clk 0:00:14]}  Kxf6 {[%clk 0:00:17]} 27. Rxb7 {[%clk 0:00:14]}  h5 {[%clk 0:00:13]} 28. Kg2 {[%clk 0:00:14]}  Bc5 {[%clk 0:00:09]} 29. Kf3 {[%clk 0:00:12]}  Kf5 {[%clk 0:00:08]} 30. Rf7+ {[%clk 0:00:11]}  Ke6 {[%clk 0:00:09]} 31. Rb7 {[%clk 0:00:10]}  Bd4 {[%clk 0:00:09]} 32. Ne2 {[%clk 0:00:09]}  Bf6 {[%clk 0:00:08]} 33. c3 {[%clk 0:00:09]}  Rd6 {[%clk 0:00:08]} 34. Rb4 {[%clk 0:00:09]}  Rd3+ {[%clk 0:00:08]} 35. Ke4 {[%clk 0:00:08]}  Rxh3 {[%clk 0:00:08]} 36. Rb6+ {[%clk 0:00:08]}  Kf7 {[%clk 0:00:08]} 37. Rxa6 {[%clk 0:00:09]}  Rh2 {[%clk 0:00:08]} 38. Ra7+ {[%clk 0:00:09]}  Kf8 {[%clk 0:00:08]} 39. Kf3 {[%clk 0:00:10]}  Bd8 {[%clk 0:00:04]} 40. Rb7 {[%clk 0:00:10]}  h4 {[%clk 0:00:03]} 41. Nd4 {[%clk 0:00:10]}  Ke8 {[%clk 0:00:03]} 42. Ne6 {[%clk 0:00:10]}  Be7 {[%clk 0:00:03]} 43. a4 {[%clk 0:00:09]}  Rh1 {[%clk 0:00:03]} 44. a5 {[%clk 0:00:10]}  h3 {[%clk 0:00:03]} 45. a6 {[%clk 0:00:09]}  Ra1 {[%clk 0:00:03]} 46. Kg3 {[%clk 0:00:09]}  Kf7 {[%clk 0:00:03]} 47. Nc7 {[%clk 0:00:09]}  Bd6 {[%clk 0:00:03]} 48. Kxh3 {[%clk 0:00:09]}  Kf6 {[%clk 0:00:02]} 49. a7 {[%clk 0:00:08]}  Kf5 {[%clk 0:00:01]} 50. a8=Q {[%clk 0:00:08]}  Rxa8 {[%clk 0:00:01]} 51. Nxa8 {[%clk 0:00:09]}  Kxf4 {[%clk 0:00:01]} 52. Kg2 {[%clk 0:00:10]}  Be5 {[%clk 0:00:02]} 53. Rb5 {[%clk 0:00:10]}  Ke4 {[%clk 0:00:03]} 54. Nb6 {[%clk 0:00:10]}  Bf4 {[%clk 0:00:03]} 55. Nd7 {[%clk 0:00:11]}  Kd3 {[%clk 0:00:03]} 56. Rb6 {[%clk 0:00:11]}  Bc1 {[%clk 0:00:04]} 57. Rxg6 {[%clk 0:00:11]}  Kc2 {[%clk 0:00:04]} 58. Rg3 {[%clk 0:00:12]}  Kb1 {[%clk 0:00:04]} 59. c4 {[%clk 0:00:13]}  Kc2 {[%clk 0:00:05]} 60. c5 {[%clk 0:00:14]}  Bxb2 {[%clk 0:00:06]} 61. c6 {[%clk 0:00:15]} 1-0


[Site "https://www.chess.com"]

[Event "Titled Tuesday Blitz November 22 Early 2022"]
[White "Kiseljova, Marya"]
[Black "Lohani, Sujana"]
[WhiteFideId "4155009"]
[BlackFideId "12311987"]
[WhiteElo "1907"]
[BlackElo "1691"]
[Result "1-0"]
[Round "06"]
[TimeControl "180+1"]
[Date "2022.11.23"]
[WhiteClock "0:01:47"]
[BlackClock "0:00:06"]

1. d4 {[%clk 0:02:58]}  g6 {[%clk 0:02:23]} 2. c4 {[%clk 0:02:57]}  Bg7 {[%clk 0:02:24]} 3. Nc3 {[%clk 0:02:56]}  d6 {[%clk 0:02:23]} 4. e4 {[%clk 0:02:53]}  Nf6 {[%clk 0:02:24]} 5. Be2 {[%clk 0:02:51]}  O-O {[%clk 0:02:24]} 6. Bg5 {[%clk 0:02:52]}  c5 {[%clk 0:02:24]} 7. d5 {[%clk 0:02:48]}  a6 {[%clk 0:02:19]} 8. a4 {[%clk 0:02:47]}  Qa5 {[%clk 0:02:19]} 9. Qd2 {[%clk 0:02:41]}  Re8 {[%clk 0:02:16]} 10. Nf3 {[%clk 0:02:38]}  e6 {[%clk 0:02:15]} 11. O-O {[%clk 0:02:33]}  exd5 {[%clk 0:02:12]} 12. exd5 {[%clk 0:02:23]}  Nbd7 {[%clk 0:01:57]} 13. h3 {[%clk 0:02:18]}  Ne5 {[%clk 0:01:56]} 14. Nxe5 {[%clk 0:02:18]}  Rxe5 {[%clk 0:01:56]} 15. Bf4 {[%clk 0:02:13]}  Re8 {[%clk 0:01:11]} 16. Bxd6 {[%clk 0:02:13]}  Qb6 {[%clk 0:01:10]} 17. Bf4 {[%clk 0:02:06]}  Bf5 {[%clk 0:01:09]} 18. Bd3 {[%clk 0:02:03]}  Bxd3 {[%clk 0:01:05]} 19. Qxd3 {[%clk 0:02:04]}  Qxb2 {[%clk 0:00:54]} 20. Rfb1 {[%clk 0:02:02]}  Qxa1 {[%clk 0:00:22]} 21. Rxa1 {[%clk 0:02:00]}  Nh5 {[%clk 0:00:22]} 22. Be3 {[%clk 0:01:56]}  Rad8 {[%clk 0:00:20]} 23. Rb1 {[%clk 0:01:53]}  Rd7 {[%clk 0:00:18]} 24. Bxc5 {[%clk 0:01:52]}  Rc8 {[%clk 0:00:15]} 25. Be3 {[%clk 0:01:50]}  Nf6 {[%clk 0:00:10]} 26. Ne4 {[%clk 0:01:49]}  Ne8 {[%clk 0:00:09]} 27. c5 {[%clk 0:01:48]}  Rcd8 {[%clk 0:00:06]} 28. d6 {[%clk 0:01:47]} 1-0


[Site "https://www.chess.com"]

[Event "Titled Tuesday Blitz November 22 Early 2022"]
[White "Kleiman, Jake"]
[Black "Kopylov, Alexander A."]
[WhiteFideId "2020041"]
[BlackFideId "4164857"]
[WhiteElo "2583"]
[BlackElo "2436"]
[Result "1/2-1/2"]
[Round "06"]
[TimeControl "180+1"]
[Date "2022.11.23"]
[WhiteClock "0:00:03"]
[BlackClock "0:00:46"]

1. e4 {[%clk 0:03:00]}  e5 {[%clk 0:02:58]} 2. Nf3 {[%clk 0:02:59]}  Nc6 {[%clk 0:02:58]} 3. Bc4 {[%clk 0:02:59]}  Nf6 {[%clk 0:02:57]} 4. d3 {[%clk 0:02:59]}  Be7 {[%clk 0:02:57]} 5. O-O {[%clk 0:02:58]}  O-O {[%clk 0:02:57]} 6. Re1 {[%clk 0:02:59]}  d6 {[%clk 0:02:57]} 7. a4 {[%clk 0:03:00]}  h6 {[%clk 0:02:57]} 8. a5 {[%clk 0:03:00]}  a6 {[%clk 0:02:56]} 9. Nc3 {[%clk 0:03:00]}  Nh7 {[%clk 0:02:55]} 10. d4 {[%clk 0:02:55]}  Ng5 {[%clk 0:02:53]} 11. Bxg5 {[%clk 0:02:50]}  hxg5 {[%clk 0:02:52]} 12. dxe5 {[%clk 0:02:47]}  g4 {[%clk 0:02:43]} 13. exd6 {[%clk 0:02:32]}  Bxd6 {[%clk 0:02:43]} 14. e5 {[%clk 0:02:08]}  gxf3 {[%clk 0:02:41]} 15. exd6 {[%clk 0:02:09]}  fxg2 {[%clk 0:02:41]} 16. dxc7 {[%clk 0:01:54]}  Qxc7 {[%clk 0:02:38]} 17. Nd5 {[%clk 0:01:46]}  Qd8 {[%clk 0:02:38]} 18. Ne7+ {[%clk 0:01:26]}  Nxe7 {[%clk 0:02:38]} 19. Qxd8 {[%clk 0:01:26]}  Rxd8 {[%clk 0:02:39]} 20. Rxe7 {[%clk 0:01:26]}  Be6 {[%clk 0:02:36]} 21. Bxe6 {[%clk 0:01:24]}  fxe6 {[%clk 0:02:37]} 22. Rxb7 {[%clk 0:01:16]}  Rd2 {[%clk 0:02:37]} 23. Kxg2 {[%clk 0:01:04]}  Rxc2 {[%clk 0:02:36]} 24. Ra3 {[%clk 0:01:00]}  Rf8 {[%clk 0:02:32]} 25. Rf3 {[%clk 0:00:59]}  Rf5 {[%clk 0:02:10]} 26. b4 {[%clk 0:00:50]}  Rb2 {[%clk 0:02:05]} 27. h4 {[%clk 0:00:37]}  Kh7 {[%clk 0:02:02]} 28. Rxf5 {[%clk 0:00:34]}  exf5 {[%clk 0:02:02]} 29. Kg3 {[%clk 0:00:34]}  Kg6 {[%clk 0:01:58]} 30. Rb6+ {[%clk 0:00:31]}  Kh5 {[%clk 0:01:59]} 31. f3 {[%clk 0:00:30]}  Rb3 {[%clk 0:01:55]} 32. Rb8 {[%clk 0:00:27]}  g5 {[%clk 0:01:19]} 33. Rh8+ {[%clk 0:00:17]}  Kg6 {[%clk 0:01:20]} 34. Rg8+ {[%clk 0:00:18]}  Kf7 {[%clk 0:01:20]} 35. Rxg5 {[%clk 0:00:18]}  Kf6 {[%clk 0:01:21]} 36. Rh5 {[%clk 0:00:18]}  Kg6 {[%clk 0:01:20]} 37. Rh8 {[%clk 0:00:16]}  Rxb4 {[%clk 0:01:21]} 38. Ra8 {[%clk 0:00:16]}  Kh5 {[%clk 0:01:21]} 39. Rxa6 {[%clk 0:00:15]}  f4+ {[%clk 0:01:21]} 40. Kh3 {[%clk 0:00:15]}  Rb3 {[%clk 0:01:22]} 41. Kg2 {[%clk 0:00:14]}  Rb2+ {[%clk 0:01:21]} 42. Kf1 {[%clk 0:00:13]}  Kxh4 {[%clk 0:01:19]} 43. Rg6 {[%clk 0:00:12]}  Ra2 {[%clk 0:01:19]} 44. a6 {[%clk 0:00:12]}  Kh3 {[%clk 0:01:18]} 45. Ke1 {[%clk 0:00:11]}  Kh2 {[%clk 0:01:16]} 46. Kd1 {[%clk 0:00:10]}  Kh3 {[%clk 0:01:16]} 47. Kc1 {[%clk 0:00:10]}  Ra3 {[%clk 0:01:16]} 48. Kb2 {[%clk 0:00:09]}  Ra5 {[%clk 0:01:15]} 49. Kc3 {[%clk 0:00:08]}  Ra3+ {[%clk 0:01:14]} 50. Kb4 {[%clk 0:00:08]}  Ra1 {[%clk 0:01:09]} 51. Kb5 {[%clk 0:00:08]}  Ra3 {[%clk 0:01:05]} 52. Rg7 {[%clk 0:00:04]}  Rxf3 {[%clk 0:01:04]} 53. a7 {[%clk 0:00:04]}  Ra3 {[%clk 0:01:04]} 54. Kb6 {[%clk 0:00:03]}  f3 {[%clk 0:00:53]} 55. Rf7 {[%clk 0:00:03]}  Kg2 {[%clk 0:00:46]} 56. Kb7 {[%clk 0:00:03]}  Rb3+ {[%clk 0:00:46]} 57. Kc8 {[%clk 0:00:03]}  Rc3+ {[%clk 0:00:46]} 58. Kb8 {[%clk 0:00:03]}  Rb3+ {[%clk 0:00:46]} 59. Kc8 {[%clk 0:00:03]}  Ra3 {[%clk 0:00:46]} 60. Kb8 {[%clk 0:00:03]}  Rb3+ {[%clk 0:00:46]} 61. Kc8 {[%clk 0:00:03]} 1/2-1/2


[Site "https://www.chess.com"]

[Event "Titled Tuesday Blitz November 22 Early 2022"]
[White "Kuchava, Ana"]
[Black "Vasques, Antonio Pedro Freixial"]
[WhiteFideId "13605348"]
[BlackFideId "1908332"]
[WhiteElo "2001"]
[BlackElo "2243"]
[Result "0-1"]
[Round "06"]
[TimeControl "180+1"]
[Date "2022.11.23"]
[WhiteClock "0:00:03"]
[BlackClock "0:00:32"]

1. d4 {[%clk 0:03:00]}  Nf6 {[%clk 0:02:42]} 2. Nf3 {[%clk 0:02:59]}  g6 {[%clk 0:02:39]} 3. c4 {[%clk 0:02:57]}  Bg7 {[%clk 0:02:39]} 4. Nc3 {[%clk 0:02:54]}  O-O {[%clk 0:02:37]} 5. e4 {[%clk 0:02:54]}  d6 {[%clk 0:02:38]} 6. Be2 {[%clk 0:02:51]}  Na6 {[%clk 0:02:34]} 7. O-O {[%clk 0:02:50]}  e5 {[%clk 0:02:33]} 8. d5 {[%clk 0:02:42]}  Nc5 {[%clk 0:02:32]} 9. Be3 {[%clk 0:02:34]}  Ncxe4 {[%clk 0:02:30]} 10. Nxe4 {[%clk 0:02:19]}  Nxe4 {[%clk 0:02:31]} 11. Qc2 {[%clk 0:02:18]}  f5 {[%clk 0:02:29]} 12. Bd3 {[%clk 0:02:16]}  Nc5 {[%clk 0:02:24]} 13. Bxc5 {[%clk 0:02:15]}  dxc5 {[%clk 0:02:25]} 14. Nd2 {[%clk 0:02:10]}  e4 {[%clk 0:02:23]} 15. Be2 {[%clk 0:02:07]}  Be5 {[%clk 0:02:15]} 16. Nb3 {[%clk 0:02:03]}  b6 {[%clk 0:02:14]} 17. f4 {[%clk 0:02:01]}  exf3 {[%clk 0:02:13]} 18. Bxf3 {[%clk 0:02:01]}  Bd7 {[%clk 0:02:09]} 19. Rae1 {[%clk 0:01:56]}  Bd6 {[%clk 0:02:09]} 20. Nc1 {[%clk 0:01:49]}  Qh4 {[%clk 0:02:05]} 21. g3 {[%clk 0:01:47]}  Qd4+ {[%clk 0:02:05]} 22. Kg2 {[%clk 0:01:43]}  Rae8 {[%clk 0:02:06]} 23. Ne2 {[%clk 0:01:26]}  Qf6 {[%clk 0:02:01]} 24. Nc3 {[%clk 0:01:23]}  Re5 {[%clk 0:01:54]} 25. Rxe5 {[%clk 0:01:14]}  Qxe5 {[%clk 0:01:52]} 26. Rf2 {[%clk 0:01:12]}  Re8 {[%clk 0:01:48]} 27. Re2 {[%clk 0:01:10]}  Qd4 {[%clk 0:01:49]} 28. Rxe8+ {[%clk 0:01:07]}  Bxe8 {[%clk 0:01:49]} 29. Qe2 {[%clk 0:01:05]}  Bd7 {[%clk 0:01:45]} 30. Nb5 {[%clk 0:01:00]}  Qe5 {[%clk 0:01:32]} 31. Nxa7 {[%clk 0:00:53]}  Qxe2+ {[%clk 0:01:13]} 32. Bxe2 {[%clk 0:00:53]}  Be5 {[%clk 0:01:13]} 33. b3 {[%clk 0:00:53]}  h5 {[%clk 0:01:09]} 34. Nc6 {[%clk 0:00:28]}  Bd6 {[%clk 0:00:59]} 35. Kf3 {[%clk 0:00:26]}  Kf7 {[%clk 0:00:57]} 36. Bd3 {[%clk 0:00:26]}  Kf6 {[%clk 0:00:57]} 37. h3 {[%clk 0:00:25]}  f4 {[%clk 0:00:50]} 38. g4 {[%clk 0:00:20]}  hxg4+ {[%clk 0:00:48]} 39. hxg4 {[%clk 0:00:21]}  Kg5 {[%clk 0:00:48]} 40. a4 {[%clk 0:00:13]}  Bxg4+ {[%clk 0:00:47]} 41. Kf2 {[%clk 0:00:13]}  Bd1 {[%clk 0:00:44]} 42. a5 {[%clk 0:00:13]}  bxa5 {[%clk 0:00:40]} 43. Nxa5 {[%clk 0:00:13]}  Kf6 {[%clk 0:00:39]} 44. Be2 {[%clk 0:00:07]}  Bc2 {[%clk 0:00:36]} 45. Nb7 {[%clk 0:00:04]}  Bxb3 {[%clk 0:00:33]} 46. Nxd6 {[%clk 0:00:04]}  cxd6 {[%clk 0:00:34]} 47. Kf3 {[%clk 0:00:02]}  g5 {[%clk 0:00:33]} 48. Bd3 {[%clk 0:00:03]}  Bd1+ {[%clk 0:00:32]} 49. Kf2 {[%clk 0:00:03]}  g4 {[%clk 0:00:32]} 50. Kg2 {[%clk 0:00:03]}  Ke5 {[%clk 0:00:32]} 51. Kf2 {[%clk 0:00:03]}  Kd4 {[%clk 0:00:32]} 52. Bf1 {[%clk 0:00:03]}  Bb3 {[%clk 0:00:32]} 0-1


[Site "https://www.chess.com"]

[Event "Titled Tuesday Blitz November 22 Early 2022"]
[White "Le, Tuan Minh"]
[Black "Kravtsiv, Martyn"]
[WhiteFideId "12401153"]
[BlackFideId "14113147"]
[WhiteElo "2530"]
[BlackElo "2694"]
[Result "1-0"]
[Round "06"]
[TimeControl "180+1"]
[Date "2022.11.22"]
[WhiteClock "0:00:08"]
[BlackClock "0:00:03"]

1. d4 {[%clk 0:02:59]}  d5 {[%clk 0:02:59]} 2. Nf3 {[%clk 0:02:58]}  Nf6 {[%clk 0:02:56]} 3. Bf4 {[%clk 0:02:58]}  e6 {[%clk 0:02:57]} 4. e3 {[%clk 0:02:58]}  c5 {[%clk 0:02:57]} 5. c3 {[%clk 0:02:58]}  Nc6 {[%clk 0:02:57]} 6. Nbd2 {[%clk 0:02:57]}  Bd6 {[%clk 0:02:57]} 7. Bg3 {[%clk 0:02:56]}  O-O {[%clk 0:02:54]} 8. Bb5 {[%clk 0:02:57]}  Ne7 {[%clk 0:02:39]} 9. Bd3 {[%clk 0:02:56]}  Nf5 {[%clk 0:02:38]} 10. Ne5 {[%clk 0:02:48]}  Qc7 {[%clk 0:02:25]} 11. Bxf5 {[%clk 0:02:17]}  exf5 {[%clk 0:02:24]} 12. Nd3 {[%clk 0:02:18]}  c4 {[%clk 0:02:17]} 13. Nf4 {[%clk 0:02:12]}  b5 {[%clk 0:02:09]} 14. h4 {[%clk 0:01:59]}  Bb7 {[%clk 0:02:05]} 15. a3 {[%clk 0:01:22]}  a5 {[%clk 0:02:03]} 16. Qf3 {[%clk 0:01:20]}  Rfe8 {[%clk 0:01:52]} 17. O-O {[%clk 0:01:20]}  Ne4 {[%clk 0:01:41]} 18. Nxe4 {[%clk 0:01:08]}  dxe4 {[%clk 0:01:40]} 19. Qe2 {[%clk 0:01:01]}  g6 {[%clk 0:01:40]} 20. a4 {[%clk 0:00:48]}  b4 {[%clk 0:01:37]} 21. d5 {[%clk 0:00:48]}  Rac8 {[%clk 0:01:31]} 22. Rfd1 {[%clk 0:00:48]}  Red8 {[%clk 0:01:28]} 23. Rd2 {[%clk 0:00:45]}  Be5 {[%clk 0:01:25]} 24. Rc1 {[%clk 0:00:44]}  Rd7 {[%clk 0:01:00]} 25. Qd1 {[%clk 0:00:25]}  Qb8 {[%clk 0:00:50]} 26. Ne2 {[%clk 0:00:20]}  Rcd8 {[%clk 0:00:42]} 27. Bxe5 {[%clk 0:00:16]}  Qxe5 {[%clk 0:00:42]} 28. cxb4 {[%clk 0:00:17]}  Rxd5 {[%clk 0:00:35]} 29. Rd4 {[%clk 0:00:17]}  Rxd4 {[%clk 0:00:28]} 30. Nxd4 {[%clk 0:00:18]}  f4 {[%clk 0:00:28]} 31. Rxc4 {[%clk 0:00:17]}  fxe3 {[%clk 0:00:28]} 32. fxe3 {[%clk 0:00:18]}  Qg3 {[%clk 0:00:27]} 33. Qe2 {[%clk 0:00:17]}  axb4 {[%clk 0:00:22]} 34. Qf2 {[%clk 0:00:17]}  Qd6 {[%clk 0:00:20]} 35. b3 {[%clk 0:00:14]}  Bd5 {[%clk 0:00:17]} 36. Rc1 {[%clk 0:00:14]}  h5 {[%clk 0:00:16]} 37. Nb5 {[%clk 0:00:10]}  Qe5 {[%clk 0:00:15]} 38. Nd4 {[%clk 0:00:11]}  Kg7 {[%clk 0:00:11]} 39. Qe1 {[%clk 0:00:09]}  Qd6 {[%clk 0:00:11]} 40. Rd1 {[%clk 0:00:09]}  Qe7 {[%clk 0:00:08]} 41. Qg3 {[%clk 0:00:07]}  Kh7 {[%clk 0:00:07]} 42. Rc1 {[%clk 0:00:07]}  Rd7 {[%clk 0:00:05]} 43. Qf4 {[%clk 0:00:08]}  Bb7 {[%clk 0:00:03]} 44. a5 {[%clk 0:00:08]}  Rd5 {[%clk 0:00:03]} 45. Rc7 {[%clk 0:00:08]}  Rd7 {[%clk 0:00:03]} 46. Rxd7 {[%clk 0:00:08]}  Qxd7 {[%clk 0:00:04]} 47. Qe5 {[%clk 0:00:09]}  Ba6 {[%clk 0:00:04]} 48. Qf6 {[%clk 0:00:08]}  Qc7 {[%clk 0:00:04]} 49. Qxa6 {[%clk 0:00:08]}  Qc1+ {[%clk 0:00:04]} 50. Kf2 {[%clk 0:00:09]}  Qd2+ {[%clk 0:00:05]} 51. Ne2 {[%clk 0:00:09]}  Qd8 {[%clk 0:00:04]} 52. g3 {[%clk 0:00:08]}  Qe7 {[%clk 0:00:04]} 53. Qb6 {[%clk 0:00:08]}  Qe5 {[%clk 0:00:03]} 54. a6 {[%clk 0:00:08]}  Qf5+ {[%clk 0:00:03]} 55. Nf4 {[%clk 0:00:08]} 1-0


[Site "https://www.chess.com"]